[Event "Early-Titled-Tuesday-Blitz-January-23-2024"]
[Site "Chess.com"]
[Date "2024.01.23"]
[Round "7"]
[White "jaskol95"]
[Black "Slovineanu"]
[Result "1-0"]
[WhiteElo "2558"]
[BlackElo "2414"]
[TimeControl "180+1"]
[EndTime "9:17:24 PST"]
[Termination "jaskol95 won by resignation"]

1. e4 {[%clk 0:03:00.9]} 1... e5 {[%clk 0:02:55.8]} 2. Nf3 {[%clk 0:02:57.4]}
2... Nc6 {[%clk 0:02:55.6]} 3. Bc4 {[%clk 0:02:58.1]} 3... Nf6 {[%clk
0:02:54.9]} 4. Ng5 {[%clk 0:02:58.7]} 4... Bc5 {[%clk 0:02:54.2]} 5. Nxf7 {[%clk
0:02:50.5]} 5... Bxf2+ {[%clk 0:02:53.4]} 6. Kf1 {[%clk 0:02:51]} 6... Qe7
{[%clk 0:02:50.4]} 7. Nxh8 {[%clk 0:02:50.5]} 7... d5 {[%clk 0:02:48.5]} 8. exd5
{[%clk 0:02:50]} 8... Nd4 {[%clk 0:02:48.3]} 9. d6 {[%clk 0:02:48.3]} 9... Qxd6
{[%clk 0:02:36.4]} 10. Nf7 {[%clk 0:02:37]} 10... Qc5 {[%clk 0:02:29.3]} 11. d3
{[%clk 0:02:16]} 11... Bh4 {[%clk 0:02:10.4]} 12. b4 {[%clk 0:02:05.6]} 12...
Qxb4 {[%clk 0:01:58.8]} 13. Nxe5 {[%clk 0:01:27.7]} 13... Qc5 {[%clk 0:01:45.1]}
14. c3 {[%clk 0:00:55]} 14... Qxe5 {[%clk 0:00:22.1]} 15. cxd4 {[%clk
0:00:54.1]} 15... Qxd4 {[%clk 0:00:18.7]} 16. Qe2+ {[%clk 0:00:42.7]} 16... Kf8
{[%clk 0:00:16.2]} 17. Bb2 {[%clk 0:00:25.5]} 17... Qf4+ {[%clk 0:00:15.4]} 18.
Qf3 {[%clk 0:00:21.6]} 18... Qxf3+ {[%clk 0:00:14]} 19. gxf3 {[%clk 0:00:21.7]}
19... Bh3+ {[%clk 0:00:14.7]} 20. Ke2 {[%clk 0:00:22.3]} 20... Re8+ {[%clk
0:00:15]} 21. Kd1 {[%clk 0:00:17.2]} 21... Bg2 {[%clk 0:00:14.7]} 22. Rg1 {[%clk
0:00:14.7]} 22... Bxf3+ {[%clk 0:00:14.6]} 23. Kc2 {[%clk 0:00:15.4]} 23... Re2+
{[%clk 0:00:13.4]} 24. Kb3 {[%clk 0:00:13.5]} 24... Bf2 {[%clk 0:00:10.9]} 25.
Rf1 {[%clk 0:00:11.7]} 25... Bg2 {[%clk 0:00:10.3]} 26. Nc3 {[%clk 0:00:07.2]}
26... Bxf1 {[%clk 0:00:09.8]} 27. Rxf1 {[%clk 0:00:07.9]} 27... Rd2 {[%clk
0:00:07.8]} 28. Bc1 {[%clk 0:00:07]} 1-0

[Event "Early-Titled-Tuesday-Blitz-January-23-2024"]
[Site "Chess.com"]
[Date "2024.01.23"]
[Round "7"]
[White "cthake"]
[Black "Rgoltsman"]
[Result "0-1"]
[WhiteElo "1845"]
[BlackElo "2267"]
[TimeControl "180+1"]
[EndTime "9:17:24 PST"]
[Termination "Rgoltsman won on time"]

1. e4 {[%clk 0:03:00.9]} 1... g6 {[%clk 0:02:52.6]} 2. d4 {[%clk 0:02:59.7]}
2... Bg7 {[%clk 0:02:53.1]} 3. Nc3 {[%clk 0:02:55.9]} 3... c5 {[%clk 0:02:53.5]}
4. Nf3 {[%clk 0:02:44.9]} 4... cxd4 {[%clk 0:02:53.5]} 5. Nxd4 {[%clk
0:02:44.6]} 5... Nc6 {[%clk 0:02:53.8]} 6. Be3 {[%clk 0:02:44.2]} 6... Nf6
{[%clk 0:02:52.8]} 7. Nxc6 {[%clk 0:02:39.3]} 7... bxc6 {[%clk 0:02:52]} 8. e5
{[%clk 0:02:31.5]} 8... Ng8 {[%clk 0:02:43.5]} 9. f4 {[%clk 0:02:28.1]} 9... h5
{[%clk 0:02:42.2]} 10. Bc4 {[%clk 0:02:25.3]} 10... Nh6 {[%clk 0:02:41.7]} 11.
O-O {[%clk 0:02:13.7]} 11... O-O {[%clk 0:02:40.3]} 12. Ne4 {[%clk 0:01:54.8]}
12... a5 {[%clk 0:02:31.1]} 13. Bc5 {[%clk 0:01:45.6]} 13... Nf5 {[%clk
0:02:10.2]} 14. Qf3 {[%clk 0:01:38.5]} 14... d5 {[%clk 0:01:52.5]} 15. exd6
{[%clk 0:01:36.7]} 15... exd6 {[%clk 0:01:52.5]} 16. Ba3 {[%clk 0:01:32.7]}
16... d5 {[%clk 0:01:36.7]} 17. Rad1 {[%clk 0:01:10.8]} 17... Qb6+ {[%clk
0:01:21.1]} 18. Bc5 {[%clk 0:01:06]} 18... dxe4 {[%clk 0:01:17.3]} 19. Qa3
{[%clk 0:00:56.8]} 19... Qc7 {[%clk 0:00:54.2]} 20. Bxf8 {[%clk 0:00:47]} 20...
Bxf8 {[%clk 0:00:54.2]} 21. Qb3 {[%clk 0:00:46.1]} 21... Rb8 {[%clk 0:00:50.4]}
22. Qc3 {[%clk 0:00:43.5]} 22... Qb6+ {[%clk 0:00:41.1]} 23. Kh1 {[%clk
0:00:42.3]} 23... Ne3 {[%clk 0:00:40.5]} 24. f5 {[%clk 0:00:20.1]} 24... Nxd1
{[%clk 0:00:37.7]} 25. Qf6 {[%clk 0:00:17.3]} 25... Qa7 {[%clk 0:00:14.9]} 26.
Qxg6+ {[%clk 0:00:12.2]} 26... Bg7 {[%clk 0:00:12]} 27. Rxd1 {[%clk 0:00:11.3]}
27... Ba6 {[%clk 0:00:08.9]} 28. Bxf7+ {[%clk 0:00:02.6]} 28... Qxf7 {[%clk
0:00:08.4]} 0-1

[Event "Early-Titled-Tuesday-Blitz-January-23-2024"]
[Site "Chess.com"]
[Date "2024.01.23"]
[Round "7"]
[White "Chesstiger64"]
[Black "NtcPou"]
[Result "0-1"]
[WhiteElo "2193"]
[BlackElo "2010"]
[TimeControl "180+1"]
[EndTime "9:17:25 PST"]
[Termination "NtcPou won by checkmate"]

1. d4 {[%clk 0:03:00.9]} 1... d5 {[%clk 0:02:58.5]} 2. Nf3 {[%clk 0:03:00.7]}
2... c6 {[%clk 0:02:56.6]} 3. e3 {[%clk 0:02:59.5]} 3... Nf6 {[%clk 0:02:55.7]}
4. c4 {[%clk 0:02:59.4]} 4... a6 {[%clk 0:02:53.5]} 5. Nc3 {[%clk 0:02:58.2]}
5... Bf5 {[%clk 0:02:50]} 6. Bd3 {[%clk 0:02:57.6]} 6... Bxd3 {[%clk 0:02:46.9]}
7. Qxd3 {[%clk 0:02:58.5]} 7... e6 {[%clk 0:02:46.4]} 8. O-O {[%clk 0:02:57.1]}
8... Nbd7 {[%clk 0:02:44.4]} 9. e4 {[%clk 0:02:56.7]} 9... dxe4 {[%clk
0:02:43.4]} 10. Nxe4 {[%clk 0:02:57.6]} 10... Nxe4 {[%clk 0:02:43.7]} 11. Qxe4
{[%clk 0:02:58.1]} 11... Nf6 {[%clk 0:02:44.1]} 12. Qe2 {[%clk 0:02:58.6]} 12...
Be7 {[%clk 0:02:32.6]} 13. Rd1 {[%clk 0:02:58.3]} 13... O-O {[%clk 0:02:29.9]}
14. b3 {[%clk 0:02:58.4]} 14... b5 {[%clk 0:02:24.7]} 15. Bg5 {[%clk 0:02:53.6]}
15... Qc7 {[%clk 0:02:20.9]} 16. Rac1 {[%clk 0:02:50.1]} 16... Rfe8 {[%clk
0:02:13.2]} 17. cxb5 {[%clk 0:02:46.4]} 17... axb5 {[%clk 0:02:13.4]} 18. Ne5
{[%clk 0:02:42.1]} 18... Ra6 {[%clk 0:02:04.5]} 19. Qxb5 {[%clk 0:02:35.9]}
19... cxb5 {[%clk 0:02:04.1]} 20. Rxc7 {[%clk 0:02:34.5]} 20... Rxa2 {[%clk
0:02:04.5]} 21. Nc6 {[%clk 0:02:29.5]} 21... Bf8 {[%clk 0:01:51.6]} 22. Ne5
{[%clk 0:01:52.5]} 22... Nd5 {[%clk 0:01:49.5]} 23. Rb7 {[%clk 0:01:45.8]} 23...
f6 {[%clk 0:01:48.4]} 24. Nf3 {[%clk 0:01:37.4]} 24... fxg5 {[%clk 0:01:46.2]}
25. Rxb5 {[%clk 0:01:37]} 25... g4 {[%clk 0:01:41.1]} 26. Ne5 {[%clk 0:01:37.2]}
26... h5 {[%clk 0:01:40.9]} 27. h3 {[%clk 0:01:29.9]} 27... gxh3 {[%clk
0:01:38.7]} 28. gxh3 {[%clk 0:01:30.8]} 28... Bd6 {[%clk 0:01:38.6]} 29. Rc1
{[%clk 0:01:26.6]} 29... Rf8 {[%clk 0:01:30.8]} 30. Nd3 {[%clk 0:01:20.1]} 30...
Nf4 {[%clk 0:01:28.8]} 31. Nxf4 {[%clk 0:01:18.6]} 31... Rxf4 {[%clk 0:01:20]}
32. Rf1 {[%clk 0:01:18.5]} 32... Rxd4 {[%clk 0:01:09.7]} 33. Rxh5 {[%clk
0:01:17.7]} 33... Rf4 {[%clk 0:01:05.4]} 34. Rb5 {[%clk 0:01:13.1]} 34... Rb2
{[%clk 0:01:03.3]} 35. Rb6 {[%clk 0:01:11.7]} 35... Bc5 {[%clk 0:00:58.1]} 36.
Rxe6 {[%clk 0:01:11.6]} 36... Bxf2+ {[%clk 0:00:58.1]} 37. Kh1 {[%clk 0:01:08]}
37... Rf6 {[%clk 0:00:46]} 38. Rxf6 {[%clk 0:01:06]} 38... gxf6 {[%clk
0:00:46.2]} 39. Kg2 {[%clk 0:01:06.2]} 39... Bd4+ {[%clk 0:00:45.9]} 40. Kh1
{[%clk 0:01:02.4]} 40... Rxb3 {[%clk 0:00:43.7]} 41. Kg2 {[%clk 0:01:01.9]}
41... Kf7 {[%clk 0:00:43.5]} 42. Rc1 {[%clk 0:00:59.6]} 42... Kg6 {[%clk
0:00:43.2]} 43. Rc8 {[%clk 0:00:56.8]} 43... Kg5 {[%clk 0:00:42.3]} 44. Rd8
{[%clk 0:00:53.7]} 44... Be5 {[%clk 0:00:40.3]} 45. Rg8+ {[%clk 0:00:52.2]}
45... Kf4 {[%clk 0:00:40.3]} 46. Rg4+ {[%clk 0:00:51.7]} 46... Kf5 {[%clk
0:00:40.7]} 47. Rg8 {[%clk 0:00:51.6]} 47... Rb2+ {[%clk 0:00:37.5]} 48. Kg1
{[%clk 0:00:46.5]} 48... Rb3 {[%clk 0:00:38.4]} 49. Kg2 {[%clk 0:00:46.4]} 49...
Rb2+ {[%clk 0:00:37.9]} 50. Kg1 {[%clk 0:00:46.7]} 50... Kf4 {[%clk 0:00:35.3]}
51. h4 {[%clk 0:00:42.1]} 51... Kf3 {[%clk 0:00:34.2]} 52. Kh1 {[%clk
0:00:41.6]} 52... Bg3 {[%clk 0:00:31.7]} 53. h5 {[%clk 0:00:33.9]} 53... Rb1#
{[%clk 0:00:30.3]} 0-1

[Event "Early-Titled-Tuesday-Blitz-January-23-2024"]
[Site "Chess.com"]
[Date "2024.01.23"]
[Round "7"]
[White "Better_Chess_Faster"]
[Black "Tsyhanchuk_Stanislav"]
[Result "1-0"]
[WhiteElo "2125"]
[BlackElo "2265"]
[TimeControl "180+1"]
[EndTime "9:17:26 PST"]
[Termination "Better_Chess_Faster won on time"]

1. d4 {[%clk 0:03:00.9]} 1... Nf6 {[%clk 0:02:49.6]} 2. Bg5 {[%clk 0:03:00.5]}
2... Ne4 {[%clk 0:02:48.7]} 3. Bf4 {[%clk 0:03:00.7]} 3... c5 {[%clk 0:02:49.1]}
4. f3 {[%clk 0:03:00.2]} 4... Nf6 {[%clk 0:02:48.9]} 5. d5 {[%clk 0:02:59.4]}
5... d6 {[%clk 0:02:49.1]} 6. e4 {[%clk 0:02:59.5]} 6... g6 {[%clk 0:02:48.9]}
7. Nc3 {[%clk 0:02:58.8]} 7... Bg7 {[%clk 0:02:48.4]} 8. Nge2 {[%clk 0:02:54.1]}
8... Nbd7 {[%clk 0:02:32.6]} 9. Qd2 {[%clk 0:02:53.5]} 9... h5 {[%clk 0:02:29]}
10. h4 {[%clk 0:02:51.3]} 10... a6 {[%clk 0:02:25.7]} 11. a4 {[%clk 0:02:49.3]}
11... b6 {[%clk 0:02:09.6]} 12. Ng3 {[%clk 0:02:42.3]} 12... Rb8 {[%clk
0:01:56.3]} 13. Be2 {[%clk 0:02:39]} 13... O-O {[%clk 0:01:39.5]} 14. Nf1 {[%clk
0:02:38.2]} 14... Ne5 {[%clk 0:01:33.7]} 15. Ne3 {[%clk 0:02:34.2]} 15... b5
{[%clk 0:01:22.4]} 16. axb5 {[%clk 0:02:29.8]} 16... axb5 {[%clk 0:01:23.3]} 17.
Bxb5 {[%clk 0:02:23.4]} 17... Bd7 {[%clk 0:01:00.6]} 18. Bxd7 {[%clk 0:02:11]}
18... Nfxd7 {[%clk 0:00:42.4]} 19. b3 {[%clk 0:02:01.6]} 19... Rb4 {[%clk
0:00:35.8]} 20. O-O {[%clk 0:01:52.7]} 20... Qc7 {[%clk 0:00:15.3]} 21. Ra4
{[%clk 0:01:50.4]} 21... Rfb8 {[%clk 0:00:14.5]} 22. Rxb4 {[%clk 0:01:46.3]}
22... Rxb4 {[%clk 0:00:15.4]} 23. Ne2 {[%clk 0:01:31.5]} 23... Qb6 {[%clk
0:00:08.9]} 24. Kh2 {[%clk 0:01:30.1]} 24... Rb5 {[%clk 0:00:03.5]} 25. Nd1
{[%clk 0:01:04.8]} 25... Qb7 {[%clk 0:00:02.9]} 26. Nf2 {[%clk 0:01:04.7]} 26...
Kh7 {[%clk 0:00:02.3]} 27. Nd3 {[%clk 0:01:04.2]} 27... Nxd3 {[%clk 0:00:02]}
28. Qxd3 {[%clk 0:01:04.1]} 28... Be5 {[%clk 0:00:01.3]} 29. Bxe5 {[%clk
0:00:59.3]} 29... Nxe5 {[%clk 0:00:02.2]} 30. Qe3 {[%clk 0:00:50.5]} 30... c4
{[%clk 0:00:01.9]} 31. Nd4 {[%clk 0:00:44.8]} 31... Rb4 {[%clk 0:00:01.7]} 32.
Qc3 {[%clk 0:00:29.5]} 32... cxb3 {[%clk 0:00:01.7]} 33. cxb3 {[%clk 0:00:28.6]}
33... Rb6 {[%clk 0:00:01.8]} 34. Rc1 {[%clk 0:00:24.3]} 34... Rb4 {[%clk
0:00:01.2]} 35. Nc6 {[%clk 0:00:22.8]} 1-0

[Event "Early-Titled-Tuesday-Blitz-January-23-2024"]
[Site "Chess.com"]
[Date "2024.01.23"]
[Round "7"]
[White "Chxss_Khxsbu"]
[Black "Sofia_Blokhin"]
[Result "1-0"]
[WhiteElo "1796"]
[BlackElo "2260"]
[TimeControl "180+1"]
[EndTime "9:17:26 PST"]
[Termination "Chxss_Khxsbu won on time"]

1. e4 {[%clk 0:02:41.5]} 1... c5 {[%clk 0:02:59]} 2. Nf3 {[%clk 0:02:40.5]} 2...
e6 {[%clk 0:02:50.6]} 3. d4 {[%clk 0:02:38.9]} 3... cxd4 {[%clk 0:02:50.2]} 4.
Nxd4 {[%clk 0:02:39.8]} 4... a6 {[%clk 0:02:50.1]} 5. Nc3 {[%clk 0:02:39.4]}
5... Qc7 {[%clk 0:02:49.9]} 6. Bd3 {[%clk 0:02:35.6]} 6... Nf6 {[%clk
0:02:48.8]} 7. O-O {[%clk 0:02:34.3]} 7... b5 {[%clk 0:02:48.2]} 8. Kh1 {[%clk
0:02:26.4]} 8... Bb7 {[%clk 0:02:47.4]} 9. f3 {[%clk 0:02:23.1]} 9... d6 {[%clk
0:02:46.3]} 10. Be3 {[%clk 0:02:20.8]} 10... Be7 {[%clk 0:02:45.9]} 11. Qe1
{[%clk 0:02:17.8]} 11... O-O {[%clk 0:02:45]} 12. Qg3 {[%clk 0:02:17.8]} 12...
Kh8 {[%clk 0:02:42.1]} 13. Rad1 {[%clk 0:02:14.7]} 13... Nbd7 {[%clk 0:02:39.6]}
14. Nb3 {[%clk 0:01:51.5]} 14... Ne5 {[%clk 0:02:32.8]} 15. f4 {[%clk
0:01:46.4]} 15... Nxd3 {[%clk 0:02:21.3]} 16. cxd3 {[%clk 0:01:47.3]} 16... d5
{[%clk 0:02:16]} 17. e5 {[%clk 0:01:43.5]} 17... Nh5 {[%clk 0:02:00.2]} 18. Qg4
{[%clk 0:01:41.9]} 18... g6 {[%clk 0:01:59.1]} 19. Nd4 {[%clk 0:01:40.5]} 19...
Ng7 {[%clk 0:01:53.7]} 20. Rc1 {[%clk 0:01:36.3]} 20... Qd7 {[%clk 0:01:48.9]}
21. a3 {[%clk 0:01:28.2]} 21... Rac8 {[%clk 0:01:48]} 22. Nce2 {[%clk
0:01:25.5]} 22... Bc5 {[%clk 0:01:37.9]} 23. b4 {[%clk 0:01:22.5]} 23... Be7
{[%clk 0:01:33.4]} 24. Nb3 {[%clk 0:01:21.4]} 24... Nf5 {[%clk 0:01:24.3]} 25.
Bc5 {[%clk 0:01:20.3]} 25... Bxc5 {[%clk 0:01:12.3]} 26. Nxc5 {[%clk 0:01:19.1]}
26... Qe7 {[%clk 0:01:04.8]} 27. Qf3 {[%clk 0:01:11.8]} 27... Rxc5 {[%clk
0:00:46.6]} 28. bxc5 {[%clk 0:01:06.5]} 28... Bc6 {[%clk 0:00:41.8]} 29. d4
{[%clk 0:01:05.4]} 29... Rb8 {[%clk 0:00:38]} 30. Qc3 {[%clk 0:01:04.4]} 30...
Qc7 {[%clk 0:00:33.9]} 31. Ng3 {[%clk 0:01:02.9]} 31... a5 {[%clk 0:00:24.5]}
32. Nxf5 {[%clk 0:01:01.4]} 32... exf5 {[%clk 0:00:24.6]} 33. Rb1 {[%clk
0:01:00.4]} 33... Re8 {[%clk 0:00:17.1]} 34. Rf2 {[%clk 0:00:51.7]} 34... Kg8
{[%clk 0:00:16.8]} 35. Rfb2 {[%clk 0:00:51.2]} 35... Qa7 {[%clk 0:00:14.8]} 36.
Rxb5 {[%clk 0:00:48.6]} 36... Bxb5 {[%clk 0:00:13.6]} 37. Rxb5 {[%clk
0:00:49.5]} 37... Rb8 {[%clk 0:00:08.3]} 38. a4 {[%clk 0:00:47.1]} 38... Rxb5
{[%clk 0:00:03.5]} 39. axb5 {[%clk 0:00:48]} 1-0

[Event "Early-Titled-Tuesday-Blitz-January-23-2024"]
[Site "Chess.com"]
[Date "2024.01.23"]
[Round "7"]
[White "salomez"]
[Black "ProChessWICTH"]
[Result "0-1"]
[WhiteElo "2314"]
[BlackElo "2530"]
[TimeControl "180+1"]
[EndTime "9:17:27 PST"]
[Termination "ProChessWICTH won on time"]

1. e4 {[%clk 0:03:00.9]} 1... c6 {[%clk 0:02:59]} 2. d4 {[%clk 0:03:00.6]} 2...
d5 {[%clk 0:02:59.9]} 3. exd5 {[%clk 0:03:01.5]} 3... cxd5 {[%clk 0:03:00.8]} 4.
Bd3 {[%clk 0:03:01.6]} 4... Nc6 {[%clk 0:03:01.2]} 5. c3 {[%clk 0:03:02.2]} 5...
Nf6 {[%clk 0:03:01.8]} 6. Bf4 {[%clk 0:02:59.8]} 6... g6 {[%clk 0:03:01.8]} 7.
Nf3 {[%clk 0:02:56.8]} 7... Bf5 {[%clk 0:03:02.2]} 8. O-O {[%clk 0:02:46.8]}
8... Bxd3 {[%clk 0:02:55.9]} 9. Qxd3 {[%clk 0:02:46]} 9... Bg7 {[%clk
0:02:56.5]} 10. Re1 {[%clk 0:02:44.8]} 10... O-O {[%clk 0:02:56.2]} 11. Ne5
{[%clk 0:02:45]} 11... Qb6 {[%clk 0:02:54.1]} 12. Nxc6 {[%clk 0:02:39.5]} 12...
bxc6 {[%clk 0:02:55]} 13. b3 {[%clk 0:02:31.8]} 13... Rfe8 {[%clk 0:02:42]} 14.
Nd2 {[%clk 0:02:29.2]} 14... Nh5 {[%clk 0:02:41.6]} 15. Be5 {[%clk 0:02:26.8]}
15... f6 {[%clk 0:02:38.2]} 16. Bg3 {[%clk 0:02:10.7]} 16... e5 {[%clk
0:02:34.8]} 17. dxe5 {[%clk 0:02:00.6]} 17... fxe5 {[%clk 0:02:35.7]} 18. Rad1
{[%clk 0:01:10.8]} 18... e4 {[%clk 0:02:20.4]} 19. Qc2 {[%clk 0:01:07.9]} 19...
Rf8 {[%clk 0:02:11.9]} 20. Nf1 {[%clk 0:00:53.7]} 20... Rae8 {[%clk 0:02:03.2]}
21. c4 {[%clk 0:00:33.2]} 21... Qc5 {[%clk 0:01:05.4]} 22. Qe2 {[%clk
0:00:08.5]} 22... d4 {[%clk 0:00:52.6]} 23. Bc7 {[%clk 0:00:04.3]} 23... d3
{[%clk 0:00:49.2]} 24. Qd2 {[%clk 0:00:02.8]} 24... Bd4 {[%clk 0:00:38.8]} 25.
Ne3 {[%clk 0:00:02.5]} 25... Re7 {[%clk 0:00:30.4]} 26. Bg3 {[%clk 0:00:01.8]}
26... Ref7 {[%clk 0:00:28.8]} 27. b4 {[%clk 0:00:01.5]} 27... Qg5 {[%clk
0:00:16.3]} 28. Rf1 {[%clk 0:00:01.9]} 28... Nxg3 {[%clk 0:00:15.7]} 29. hxg3
{[%clk 0:00:01.8]} 29... Rxf2 {[%clk 0:00:15.7]} 30. Rxf2 {[%clk 0:00:01.9]}
30... Bxe3 {[%clk 0:00:16.1]} 0-1

[Event "Early-Titled-Tuesday-Blitz-January-23-2024"]
[Site "Chess.com"]
[Date "2024.01.23"]
[Round "7"]
[White "RodokininEV"]
[Black "crazy_m_attack"]
[Result "1-0"]
[WhiteElo "2616"]
[BlackElo "2463"]
[TimeControl "180+1"]
[EndTime "9:17:28 PST"]
[Termination "RodokininEV won on time"]

1. e4 {[%clk 0:03:00.9]} 1... e5 {[%clk 0:02:59.8]} 2. Nf3 {[%clk 0:02:57]} 2...
Nc6 {[%clk 0:03:00.2]} 3. Bb5 {[%clk 0:02:57]} 3... a6 {[%clk 0:03:00.4]} 4. Ba4
{[%clk 0:02:57.5]} 4... Nf6 {[%clk 0:03:00.7]} 5. O-O {[%clk 0:02:57.5]} 5...
Be7 {[%clk 0:03:01.2]} 6. Re1 {[%clk 0:02:57.5]} 6... b5 {[%clk 0:03:01.9]} 7.
Bb3 {[%clk 0:02:57.4]} 7... O-O {[%clk 0:03:02.8]} 8. a4 {[%clk 0:02:57.3]} 8...
b4 {[%clk 0:03:02.9]} 9. d4 {[%clk 0:02:55.1]} 9... d6 {[%clk 0:03:02.8]} 10. h3
{[%clk 0:02:53.1]} 10... Nxd4 {[%clk 0:02:52.9]} 11. Nxd4 {[%clk 0:02:54]} 11...
exd4 {[%clk 0:02:53.8]} 12. Qxd4 {[%clk 0:02:53.1]} 12... c5 {[%clk 0:02:53.9]}
13. Qd3 {[%clk 0:02:48.9]} 13... Bb7 {[%clk 0:02:51.2]} 14. Nd2 {[%clk
0:02:37.4]} 14... Re8 {[%clk 0:02:31.8]} 15. Nc4 {[%clk 0:02:12]} 15... a5
{[%clk 0:02:28.8]} 16. Bg5 {[%clk 0:02:09.6]} 16... Nxe4 {[%clk 0:01:31.3]} 17.
Bxe7 {[%clk 0:01:52.6]} 17... Rxe7 {[%clk 0:01:32.2]} 18. f3 {[%clk 0:01:43.7]}
18... d5 {[%clk 0:01:28.2]} 19. Rad1 {[%clk 0:01:30.4]} 19... Nf6 {[%clk
0:01:18.6]} 20. Rxe7 {[%clk 0:01:17.2]} 20... Qxe7 {[%clk 0:01:19.5]} 21. Nb6
{[%clk 0:01:10.3]} 21... c4 {[%clk 0:01:08.2]} 22. Qd4 {[%clk 0:01:08.4]} 22...
cxb3 {[%clk 0:00:55.6]} 23. Nxa8 {[%clk 0:01:08.2]} 23... bxc2 {[%clk
0:00:42.6]} 24. Rc1 {[%clk 0:01:08.5]} 24... Bxa8 {[%clk 0:00:35.5]} 25. Rxc2
{[%clk 0:01:08.9]} 25... Qe8 {[%clk 0:00:23.5]} 26. Rc5 {[%clk 0:01:07]} 26...
Bc6 {[%clk 0:00:20.7]} 27. b3 {[%clk 0:01:05.7]} 27... h5 {[%clk 0:00:14.7]} 28.
h4 {[%clk 0:01:04.6]} 28... Qe1+ {[%clk 0:00:14.2]} 29. Kh2 {[%clk 0:01:03.8]}
29... Bd7 {[%clk 0:00:10.9]} 30. Rxa5 {[%clk 0:01:02.3]} 30... Qc3 {[%clk
0:00:08.1]} 31. Ra8+ {[%clk 0:00:57.5]} 31... Kh7 {[%clk 0:00:06.8]} 32. Qf4
{[%clk 0:00:58.1]} 32... Qxb3 {[%clk 0:00:02.7]} 33. a5 {[%clk 0:00:56.2]} 33...
Qd3 {[%clk 0:00:01.7]} 34. a6 {[%clk 0:00:55.5]} 34... Bc6 {[%clk 0:00:02.2]}
35. Rc8 {[%clk 0:00:50.7]} 35... Qxa6 {[%clk 0:00:01.7]} 36. Qf5+ {[%clk
0:00:50.8]} 36... g6 {[%clk 0:00:01.4]} 37. Qh3 {[%clk 0:00:44.3]} 37... Bd7
{[%clk 0:00:01.2]} 38. Rd8 {[%clk 0:00:44]} 38... Bg4 {[%clk 0:00:01.1]} 39.
fxg4 {[%clk 0:00:43.5]} 39... hxg4 {[%clk 0:00:01.8]} 40. Qg3 {[%clk 0:00:43.8]}
40... Qb6 {[%clk 0:00:02.4]} 41. Qe5 {[%clk 0:00:40.7]} 41... Qd4 {[%clk
0:00:03]} 42. Qxd4 {[%clk 0:00:40.3]} 1-0

[Event "Early-Titled-Tuesday-Blitz-January-23-2024"]
[Site "Chess.com"]
[Date "2024.01.23"]
[Round "7"]
[White "GMAkobianSTL"]
[Black "JuniorJumper"]
[Result "1-0"]
[WhiteElo "2758"]
[BlackElo "2576"]
[TimeControl "180+1"]
[EndTime "9:17:33 PST"]
[Termination "GMAkobianSTL won on time"]

1. d4 {[%clk 0:03:00.9]} 1... d5 {[%clk 0:02:49.4]} 2. c4 {[%clk 0:03:00.5]}
2... e6 {[%clk 0:02:50]} 3. Nc3 {[%clk 0:02:59.5]} 3... c6 {[%clk 0:02:50.7]} 4.
e3 {[%clk 0:02:50.5]} 4... Nf6 {[%clk 0:02:45.3]} 5. Nf3 {[%clk 0:02:48.8]} 5...
Nbd7 {[%clk 0:02:45.5]} 6. Qc2 {[%clk 0:02:48.2]} 6... Bd6 {[%clk 0:02:45.1]} 7.
Be2 {[%clk 0:02:47.1]} 7... O-O {[%clk 0:02:44.8]} 8. O-O {[%clk 0:02:46.8]}
8... dxc4 {[%clk 0:02:44.9]} 9. a4 {[%clk 0:02:46.6]} 9... e5 {[%clk 0:02:45.8]}
10. Bxc4 {[%clk 0:02:45.4]} 10... exd4 {[%clk 0:02:45.6]} 11. exd4 {[%clk
0:02:45.3]} 11... h6 {[%clk 0:02:45.5]} 12. a5 {[%clk 0:02:44.2]} 12... a6
{[%clk 0:02:26.7]} 13. Re1 {[%clk 0:02:40.3]} 13... Re8 {[%clk 0:02:23.4]} 14.
Bxh6 {[%clk 0:02:38.6]} 14... Rxe1+ {[%clk 0:02:13.4]} 15. Rxe1 {[%clk
0:02:37.6]} 15... Qf8 {[%clk 0:02:05.5]} 16. Ng5 {[%clk 0:02:33.4]} 16... Bxh2+
{[%clk 0:01:59.4]} 17. Kxh2 {[%clk 0:02:23.6]} 17... gxh6 {[%clk 0:01:57.2]} 18.
Nxf7 {[%clk 0:02:02.8]} 18... Kg7 {[%clk 0:01:34.9]} 19. Kg1 {[%clk 0:01:56.4]}
19... Qb4 {[%clk 0:01:30.1]} 20. Ne5 {[%clk 0:01:38.8]} 20... Nf8 {[%clk
0:01:20.8]} 21. Qd3 {[%clk 0:01:29.3]} 21... Bg4 {[%clk 0:00:12.5]} 22. Qg3
{[%clk 0:01:20.8]} 22... h5 {[%clk 0:00:07.9]} 23. Qf4 {[%clk 0:01:15.7]} 23...
N8h7 {[%clk 0:00:04.1]} 24. f3 {[%clk 0:00:53.4]} 24... Qxb2 {[%clk 0:00:04]}
25. Re3 {[%clk 0:00:30.5]} 25... Qc1+ {[%clk 0:00:03.7]} 26. Kh2 {[%clk
0:00:29.8]} 26... Rd8 {[%clk 0:00:03]} 27. fxg4 {[%clk 0:00:26.5]} 27... hxg4
{[%clk 0:00:03.9]} 28. Nxg4 {[%clk 0:00:23]} 28... Rxd4 {[%clk 0:00:02.2]} 29.
Re7+ {[%clk 0:00:20]} 29... Kf8 {[%clk 0:00:01.8]} 30. Qxc1 {[%clk 0:00:18.7]}
30... Nxg4+ {[%clk 0:00:01.2]} 31. Kg1 {[%clk 0:00:17.1]} 31... Kxe7 {[%clk
0:00:02.1]} 32. Ne2 {[%clk 0:00:16.7]} 32... Re4 {[%clk 0:00:01.7]} 33. Bd3
{[%clk 0:00:16.5]} 1-0